bitfinex/quotes_BTCUSD_20251217
["timestamp","ask_amount","ask_price","bid_price","bid_amount"]
[1765982534406,0.01141643,87593.0,87590.0,0.23975296]
[1765982534587,0.22833135,87592.0,87591.0,0.01173609]
[1765982534953,0.01141643,87593.0,87590.0,0.23975283]
[1765982535105,0.23974148,87595.0,87590.0,0.23975283]
[1765982535106,0.01141565,87599.0,87595.0,0.01141617]
[1765982535274,0.01141604,87596.0,87593.0,0.01173297]
[1765982535476,0.01141591,87597.0,87594.0,0.2397412]
[1765982535699,0.23971432,87605.0,87599.0,0.01141565]
[1765982535898,0.01141526,87602.0,87599.0,0.01172958]
[1765982536081,0.23972146,87602.0,87599.0,0.01172958]
[1765982536281,0.02005682,87590.0,87588.0,0.22834137]
[1765982536531,0.01141643,87593.0,87589.0,0.01141695]
[1765982536733,0.03305,87608.0,87589.0,0.01141695]
[1765982536734,0.01141396,87612.0,87608.0,0.01141448]
[1765982536875,0.01062158,87611.0,87593.0,0.11363156]
[1765982537076,0.01141604,87596.0,87589.0,0.00136354]
[1765982537303,0.28366871,87570.0,87569.0,3.54e-06]
[1765982537506,0.29119958,87562.0,87534.0,0.22848169]
[1765982537882,0.29119958,87562.0,87529.0,0.25667948]
[1765982537883,0.41673953,87562.0,87529.0,0.25667948]
[1765982538091,0.41673953,87562.0,87536.0,0.01142387]
[1765982538289,0.43509953,87562.0,87537.0,0.01142374]
[1765982538489,0.43509953,87562.0,87537.0,0.01175887]
[1765982538857,0.011424,87535.0,87529.0,0.01142478]
[1765982539080,0.01836,87534.0,87531.0,0.01142452]
[1765982539275,0.01836,87534.0,87529.0,0.00136354]
[1765982539276,0.01836,87533.0,87532.0,0.11363156]
[1765982539478,0.22849229,87531.0,87529.0,0.00136354]
[1765982539803,0.23991312,87532.0,87529.0,0.00136354]
[1765982539938,0.01836,87533.0,87532.0,0.22848786]
[1765982540138,0.23988821,87541.0,87537.0,0.23989796]
[1765982540362,0.2398687,87548.0,87543.0,0.22845915]
[1765982540563,0.01142269,87545.0,87540.0,0.01142334]
[1765982540769,0.01142282,87544.0,87541.0,0.01142321]
[1765982540978,0.01142269,87545.0,87542.0,0.01176804]
[1765982541179,0.2284576,87544.0,87542.0,0.01176804]
[1765982541631,0.002,87548.0,87547.0,0.28510871]
[1765982541958,0.34254067,87581.0,87547.0,0.00136354]
[1765982541959,0.22844499,87549.0,87547.0,0.00136354]
[1765982542383,0.01142204,87550.0,87547.0,0.00136354]
[1765982542536,0.11492016,87564.0,87547.0,0.00136354]
[1765982542537,0.01142074,87560.0,87549.0,0.03455]
[1765982542738,0.01836,87553.0,87552.0,0.15960334]
[1765982542951,0.23984697,87556.0,87552.0,0.01176177]
[1765982543126,0.22843306,87553.0,87552.0,0.01176177]
[1765982543327,0.01142139,87555.0,87552.0,0.01176177]
[1765982543328,0.22843154,87554.0,87552.0,0.01176177]
[1765982543531,0.01836,87557.0,87554.0,0.01142152]
[1765982543730,0.22842569,87556.0,87554.0,0.01175969]
[1765982543927,0.2284461,87548.0,87547.0,0.001]
[1765982544128,0.22848347,87534.0,87532.0,0.11363156]
[1765982544398,0.01142361,87538.0,87533.0,0.01142426]
[1765982544778,0.011424,87535.0,87531.0,0.00136354]
[1765982544924,0.23989382,87539.0,87535.0,0.011424]
[1765982545121,0.01836,87544.0,87541.0,0.22846399]
[1765982545329,0.01142217,87549.0,87543.0,0.22845915]
[1765982545545,0.23986864,87548.0,87544.0,0.23987723]
[1765982545760,0.22845393,87545.0,87541.0,0.24125089]
[1765982545961,0.2398816,87544.0,87541.0,0.00136354]
[1765982546166,0.22845981,87543.0,87541.0,0.00136354]
[1765982546982,0.01836,87544.0,87542.0,0.22846146]
[1765982547211,0.01836,87544.0,87541.0,0.24124812]
[1765982547212,0.01141969,87568.0,87565.0,0.22840055]
[1765982547411,0.01141943,87570.0,87566.0,0.01175239]
[1765982547412,0.01836,87567.0,87566.0,0.01175239]
[1765982547612,2.0,87583.0,87550.0,0.05131]
[1765982547830,0.01141995,87566.0,87561.0,0.0114206]
[1765982548034,0.01836,87565.0,87562.0,0.00025277]
[1765982548245,0.01141865,87576.0,87565.0,0.01142008]
[1765982548449,0.01141865,87576.0,87551.0,0.03455]
[1765982548450,0.01141904,87573.0,87568.0,0.01141969]
[1765982548624,0.22839654,87567.0,87566.0,0.00025314]
[1765982548824,0.01141956,87569.0,87564.0,0.23982367]
[1765982549024,0.01141969,87568.0,87565.0,0.00025459]
[1765982549226,0.2283996,87566.0,87564.0,0.01167481]
[1765982549429,0.0114193,87571.0,87565.0,0.01142008]
[1765982549614,0.01141917,87572.0,87569.0,0.22839026]
[1765982549811,0.0297793,87571.0,87568.0,0.01141969]
[1765982550021,0.22838896,87570.0,87567.0,0.22839545]
[1765982550386,0.01141956,87569.0,87563.0,0.22840664]
[1765982550563,0.23981401,87568.0,87565.0,0.23982183]
[1765982550796,0.01142008,87565.0,87562.0,0.00136354]
[1765982550936,0.01142021,87564.0,87559.0,0.01142087]
[1765982551137,0.22838911,87570.0,87562.0,0.01142047]
[1765982551345,0.01836,87569.0,87563.0,0.01175305]
[1765982551542,0.01836,87569.0,87567.0,0.22839465]
[1765982551742,0.01141761,87584.0,87579.0,0.01141826]
[1765982551956,0.23976119,87588.0,87584.0,0.01141761]
[1765982552146,0.22836003,87581.0,87580.0,0.01174274]
[1765982552347,0.22836003,87581.0,87577.0,0.01141852]
[1765982552348,0.01141852,87577.0,87570.0,0.05701978]
[1765982552525,0.23976798,87585.0,87581.0,0.22835909]
[1765982552876,0.01141787,87582.0,87576.0,0.23979071]
[1765982553140,0.01141748,87585.0,87580.0,0.01141813]
[1765982553306,0.11492016,87589.0,87580.0,0.01174222]
[1765982553307,0.23977993,87581.0,87580.0,0.01174222]
[1765982553514,0.2283731,87576.0,87574.0,0.01174326]
[1765982553719,0.01141904,87573.0,87570.0,0.24117046]
[1765982553921,0.23979494,87575.0,87570.0,0.01278297]
[1765982554124,0.13328016,87580.0,87561.0,0.0114206]
[1765982554125,0.01141995,87566.0,87561.0,0.0114206]
[1765982554366,0.01141969,87568.0,87564.0,0.01142021]
[1765982554525,0.011421,87558.0,87551.0,0.01167488]
[1765982554724,0.011421,87558.0,87554.0,0.23985058]
[1765982554901,0.011421,87558.0,87552.0,0.01142178]
[1765982554902,0.01142113,87557.0,87552.0,0.01142178]
[1765982555108,0.23982875,87563.0,87559.0,0.01142087]
[1765982555305,0.23982466,87564.0,87560.0,0.01142074]
[1765982555534,0.2398251,87564.0,87562.0,0.00034371]
[1765982555857,0.23980553,87571.0,87568.0,0.01141969]
[1765982556053,0.22840697,87563.0,87562.0,0.00136354]
[1765982556257,0.01142087,87559.0,87555.0,0.01142139]
[1765982556459,0.01142047,87562.0,87557.0,0.23984369]
[1765982556789,0.01142047,87562.0,87557.0,0.01142113]
[1765982556980,0.23983584,87560.0,87556.0,0.02317861]
[1765982557178,0.011421,87558.0,87554.0,0.24085032]
[1765982557357,0.23984101,87558.0,87554.0,0.01142152]
[1765982557558,0.00664,87559.0,87556.0,0.23984558]
[1765982557759,0.0114206,87561.0,87555.0,0.01142139]
[1765982557760,0.01142074,87560.0,87555.0,0.01142139]
[1765982557973,0.01142074,87560.0,87556.0,0.228425]
[1765982558175,0.23983606,87560.0,87556.0,0.23984626]
[1765982558359,0.01141904,87573.0,87568.0,0.01141969]
[1765982558559,0.01141956,87569.0,87565.0,0.01142008]
[1765982558771,0.01141904,87573.0,87569.0,0.01141956]
[1765982558970,0.0114193,87571.0,87568.0,0.23981348]
[1765982559238,0.23980273,87572.0,87569.0,0.01141956]
[1765982559416,0.01141904,87573.0,87570.0,0.01141943]
[1765982559620,0.01141904,87573.0,87569.0,0.23981081]
[1765982559853,0.01141917,87572.0,87567.0,0.01141982]
[1765982560121,0.2283861,87571.0,87568.0,0.22839388]
[1765982560352,0.011421,87558.0,87554.0,0.01142152]
[1765982560601,0.0114206,87561.0,87557.0,0.23984305]
[1765982560819,0.22840871,87563.0,87558.0,0.24017686]
[1765982561030,0.01141969,87568.0,87565.0,0.01142008]
[1765982561203,0.01836,87567.0,87565.0,0.01142008]
[1765982561388,0.01836,87567.0,87565.0,0.23982166]
[1765982561574,0.01836,87567.0,87566.0,0.22839915]
[1765982562754,0.01141865,87576.0,87569.0,0.01141956]
[1765982562981,0.01141865,87576.0,87566.0,0.01278349]
[1765982562982,0.01141917,87572.0,87568.0,0.22839192]
[1765982563204,0.01836,87574.0,87571.0,0.0114193]
[1765982563376,0.01836,87582.0,87580.0,0.01141813]
[1765982563586,0.01836,87582.0,87581.0,0.22836003]
[1765982563948,0.01836,87582.0,87580.0,0.22836263]
[1765982563949,0.02977787,87582.0,87579.0,0.01141826]
[1765982564144,0.01836,87582.0,87579.0,0.01141826]
[1765982564342,0.01836,87582.0,87581.0,0.22836003]
[1765982564557,0.01141643,87593.0,87589.0,0.01141695]
[1765982564766,0.01141656,87592.0,87588.0,0.01141708]
[1765982564968,0.01141656,87592.0,87581.0,0.00136354]
[1765982564969,0.01141708,87588.0,87585.0,0.25150205]
[1765982565173,0.23973628,87597.0,87595.0,0.28534331]
[1765982565489,0.23973628,87597.0,87593.0,0.01141643]
[1765982565490,0.24668092,87596.0,87593.0,0.01141643]
[1765982565701,0.22832614,87594.0,87580.0,0.12504969]
[1765982565918,0.0114163,87594.0,87591.0,0.01141669]
[1765982566111,0.0114163,87594.0,87590.0,0.01141682]
[1765982566112,0.22832889,87593.0,87590.0,0.01141682]
[1765982566303,0.0114163,87594.0,87591.0,0.22833389]
[1765982566640,0.02977604,87596.0,87593.0,0.23974479]
[1765982566996,0.34240835,87615.0,87597.0,0.01141591]
[1765982566997,0.51141552,87600.0,87597.0,0.01141591]
[1765982567175,0.01141565,87599.0,87593.0,0.23974449]
[1765982567389,0.01141904,87573.0,87567.0,0.01141982]
[1765982567607,0.01247,87579.0,87573.0,0.23979753]
[1765982567608,0.01141865,87576.0,87573.0,0.23979753]
[1765982567851,0.01141865,87576.0,87572.0,0.2283835]
[1765982568047,0.02977748,87585.0,87582.0,0.22835718]
[1765982568291,0.22835481,87583.0,87580.0,0.23977895]
[1765982568497,0.01836,87585.0,87581.0,0.011418]
[1765982568698,0.01836,87585.0,87582.0,0.01141787]
[1765982568900,0.01141839,87578.0,87574.0,0.01141891]
[1765982569115,0.01141826,87579.0,87575.0,0.25153889]
[1765982569297,0.22838624,87571.0,87567.0,0.23981126]
[1765982569492,0.23980403,87572.0,87569.0,0.22839118]
[1765982569716,0.23979873,87574.0,87571.0,0.0114193]
[1765982569942,0.23980039,87573.0,87569.0,0.23981059]
[1765982570128,0.23980039,87573.0,87570.0,0.2398081]
[1765982570306,0.01141852,87577.0,87572.0,0.01141917]
[1765982570508,0.01228,87579.0,87574.0,0.01141891]
[1765982570687,0.011418,87581.0,87574.0,0.01141891]
[1765982570688,0.01836,87590.0,87587.0,0.01141721]
[1765982570888,0.2397595,87588.0,87584.0,0.01141761]
[1765982571099,0.01141748,87585.0,87580.0,0.23978008]
[1765982571327,0.01141748,87585.0,87567.0,0.05254]
[1765982571328,0.01141695,87589.0,87584.0,0.22835193]
[1765982571573,0.01141748,87585.0,87581.0,0.011418]
[1765982571775,0.01141578,87598.0,87590.0,0.01141682]
[1765982571962,0.23972935,87599.0,87594.0,0.0114163]
[1765982572254,0.01141578,87598.0,87594.0,0.0114163]
[1765982572452,0.5,87600.0,87599.0,0.2283131]
[1765982572666,0.5,87600.0,87599.0,0.28533288]
[1765982572870,0.5,87600.0,87599.0,0.2283131]
[1765982573073,0.5,87600.0,87599.0,0.28533288]
[1765982573702,0.5,87600.0,87599.0,0.2283131]
[1765982573876,0.5,87600.0,87599.0,0.28533288]
[1765982574310,0.5,87600.0,87599.0,0.001]
[1765982574787,0.5,87600.0,87598.0,0.22831558]
[1765982574983,0.5,87600.0,87599.0,0.2283131]
[1765982575185,0.51141552,87600.0,87591.0,0.11363156]
[1765982575344,0.01141604,87596.0,87592.0,0.01141656]
[1765982575528,0.04442591,87597.0,87594.0,0.0114163]
[1765982575756,0.01141604,87596.0,87592.0,0.2397454]
[1765982575954,0.51141552,87600.0,85050.0,2.4427]
[1765982575955,0.00772,87588.0,87587.0,0.23975902]
[1765982576174,0.00772,87588.0,87587.0,0.22834438]
[1765982576384,0.23976159,87587.0,87583.0,0.22835309]
[1765982576587,0.00772,87588.0,87572.0,0.23980025]
[1765982576588,0.01141878,87575.0,87572.0,0.23980025]
[1765982576851,0.07991337,87586.0,87557.0,0.03418]
[1765982576852,0.01141943,87570.0,87566.0,0.01141995]
[1765982577040,0.0121,87569.0,87566.0,0.22839915]
[1765982577233,0.0121,87569.0,87566.0,0.01141995]
[1765982577436,0.25181915,87566.0,87565.0,0.00024996]
[1765982577800,0.02342,87566.0,87565.0,0.00024996]
[1765982578217,0.22839687,87567.0,87565.0,0.00024996]
[1765982578566,0.22839724,87567.0,87565.0,0.00024996]
[1765982578764,0.01141917,87572.0,87565.0,0.00024996]
[1765982578765,0.01141748,87585.0,87575.0,0.01141878]
[1765982578941,0.04073,87588.0,87581.0,0.011418]
[1765982578942,0.01836,87584.0,87581.0,0.011418]
[1765982579145,0.01141748,87585.0,87581.0,0.011418]
[1765982579342,0.23976784,87585.0,87582.0,0.22835636]
[1765982579564,0.02977734,87586.0,87582.0,0.22835636]
[1765982579565,0.01141734,87586.0,87582.0,0.01141787]
[1765982579718,0.23976898,87585.0,87581.0,0.23977611]
[1765982579919,0.01836,87587.0,87584.0,0.22834997]
[1765982580164,0.02977721,87587.0,87579.0,0.05701978]
[1765982580369,0.01141734,87586.0,87581.0,0.011418]
[1765982580530,0.001,87585.0,87584.0,0.01141761]
[1765982580733,0.001,87585.0,87584.0,0.07044115]
[1765982581119,0.001,87585.0,87584.0,0.13920158]
[1765982581336,0.22830613,87602.0,87591.0,0.01141669]
[1765982581561,0.01836,87612.0,87599.0,0.2283131]
[1765982581840,0.01836,87612.0,87599.0,0.34299288]
[1765982582031,0.01703,87611.0,87599.0,0.28669642]
[1765982582179,0.01141304,87619.0,87599.0,0.34435642]
[1765982582397,0.23966938,87621.0,87599.0,0.34435642]
[1765982582398,0.01141291,87620.0,87599.0,0.34435642]
[1765982582607,0.01141344,87616.0,87599.0,0.34435642]
[1765982582831,0.01141278,87621.0,87599.0,0.28669642]
[1765982582832,0.01141396,87612.0,87599.0,0.28669642]
[1765982582991,0.36646473,87630.0,87599.0,0.2283131]
[1765982582992,0.01694,87611.0,87599.0,0.2283131]
[1765982583260,0.22829359,87607.0,87599.0,0.2283131]
[1765982583457,0.011415,87604.0,87597.0,0.29675251]
[1765982583659,0.01141695,87589.0,87586.0,0.23976294]
[1765982583859,0.01141695,87589.0,87583.0,0.01141774]
[1765982583860,0.22834495,87587.0,87584.0,0.22835184]
[1765982584133,0.01141761,87584.0,87580.0,0.01141813]
[1765982584304,0.00763,87590.0,87587.0,0.01141721]
[1765982584501,0.01141643,87593.0,87589.0,0.23975493]
[1765982584752,0.00754,87596.0,87591.0,0.01141669]
[1765982584963,0.02977578,87598.0,87595.0,0.01141617]
[1765982585105,0.23972099,87602.0,87597.0,0.06843569]
[1765982585287,0.00745,87594.0,87578.0,0.11363156]
[1765982585487,0.01141721,87587.0,87582.0,0.01141787]
[1765982585690,0.00745,87594.0,87587.0,0.01141721]
[1765982586051,0.01836,87602.0,87597.0,0.01141591]
[1765982586242,0.01141539,87601.0,87590.0,0.01141682]
[1765982586563,0.01836,87602.0,87586.0,0.23976379]
[1765982586564,0.00736,87589.0,87586.0,0.23976379]
[1765982586734,0.00736,87589.0,87588.0,0.22834178]
[1765982586926,0.00736,87589.0,87586.0,0.01141734]
[1765982587173,0.05384,87581.0,87580.0,0.23978069]
[1765982587383,0.23978076,87580.0,87575.0,0.01141878]
[1765982587634,0.02854565,87579.0,87576.0,0.01141865]
[1765982587805,0.01836,87580.0,87579.0,0.22836524]
[1765982588052,0.02977813,87580.0,87576.0,0.01141865]
[1765982588277,0.01141839,87578.0,87574.0,0.01141891]
[1765982588476,0.02977813,87580.0,87565.0,0.00024996]
[1765982588477,0.25155662,87568.0,87565.0,0.00024996]
[1765982588659,0.02315969,87568.0,87565.0,0.01167004]
[1765982588859,0.22839697,87567.0,87565.0,0.00024996]
[1765982589094,0.04261,87568.0,87565.0,0.24006953]
[1765982589285,0.01166,87575.0,87572.0,0.01141917]
[1765982589489,0.01166,87575.0,87574.0,0.22837828]
[1765982589831,0.01166,87575.0,87571.0,0.22838569]
[1765982589832,0.23975425,87590.0,87585.0,0.01141748]
[1765982590028,0.01836,87588.0,87585.0,0.01141748]
[1765982590234,0.23972032,87603.0,87597.0,0.01141591]
[1765982590441,0.51836,87600.0,87597.0,0.23973325]
[1765982590910,0.51836,87600.0,87598.0,0.22831463]
[1765982591092,0.52977552,87600.0,87596.0,0.01141604]
[1765982591291,0.51836,87600.0,87598.0,0.22831532]
[1765982591484,0.74667082,87600.0,87597.0,0.23973406]
[1765982591687,0.01141578,87598.0,87594.0,0.23974138]
[1765982591886,0.01141565,87599.0,87597.0,0.22831803]
[1765982592083,0.51836,87600.0,87597.0,0.23973394]
[1765982592485,0.52036,87600.0,87597.0,0.01141591]
[1765982592707,0.51836,87600.0,87598.0,0.22831497]
[1765982593756,0.51936,87600.0,87598.0,0.22831497]
[1765982593968,0.51936,87600.0,87598.0,0.28533475]
[1765982594171,0.51836,87600.0,87599.0,0.05701978]
[1765982594320,0.51836,87600.0,87598.0,0.22831497]
[1765982595135,0.5,87600.0,87599.0,0.05701978]
[1765982596354,0.5,87600.0,87598.0,0.22967851]
[1765982596557,0.5,87600.0,87587.0,0.01141721]
[1765982596558,0.00684,87590.0,87587.0,0.01141721]
[1765982596791,0.00684,87590.0,87588.0,0.22834178]
[1765982596983,0.00675,87597.0,87595.0,0.22832353]
[1765982597303,0.00675,87597.0,87596.0,0.05701978]
[1765982597506,0.00675,87597.0,87596.0,0.2853407]
[1765982597711,0.00675,87597.0,87596.0,0.05701978]
[1765982597915,0.00675,87597.0,87594.0,0.0114163]
[1765982598273,0.00675,87597.0,87595.0,0.22832342]
[1765982598518,0.01141604,87596.0,87591.0,0.01141669]
[1765982598720,0.23974409,87594.0,87591.0,0.2283328]
[1765982598925,0.01141604,87596.0,87593.0,0.01141643]
[1765982599131,0.00675,87597.0,87593.0,0.01141643]
[1765982599334,0.22832352,87596.0,87593.0,0.22832866]
[1765982599537,0.22833525,87591.0,87587.0,0.23975932]
[1765982599805,0.22833525,87591.0,87588.0,0.22834021]
[1765982599806,0.23975194,87591.0,87588.0,0.22834021]
[1765982599969,0.22932695,87594.0,87591.0,0.22833331]
[1765982600310,0.01816591,87597.0,87592.0,0.23974288]
[1765982600528,0.02739529,87597.0,87595.0,0.22832327]
[1765982600735,0.22832892,87593.0,87591.0,0.22833389]
[1765982600940,0.00675,87597.0,87592.0,0.01141656]
[1765982601146,0.001,87594.0,87592.0,0.01141656]
[1765982601328,0.001,87594.0,87593.0,0.22832874]
[1765982601900,0.001,87594.0,87592.0,0.23974709]
[1765982602101,0.22833396,87591.0,87588.0,0.22834021]
[1765982602319,0.01141708,87588.0,87585.0,0.01141748]
[1765982602522,0.01141708,87588.0,87584.0,0.01141761]
[1765982602723,0.23974281,87594.0,87588.0,0.01141708]
[1765982602938,0.26243273,87593.0,87590.0,0.23975284]
[1765982603136,0.00675,87597.0,87595.0,0.22832353]
[1765982603335,0.52977552,87600.0,87594.0,0.0114163]
[1765982603533,0.52977552,87600.0,87595.0,0.22832353]
[1765982603768,0.2397309,87599.0,87596.0,0.23973455]
[1765982603975,0.22831586,87598.0,87596.0,0.23973455]
[1765982604182,0.01141591,87597.0,87590.0,0.36646473]
[1765982604411,0.51836,87600.0,87597.0,0.01141591]
[1765982604561,0.01141643,87593.0,87590.0,0.36646473]
[1765982604760,0.01141643,87593.0,87559.0,0.02834064]
[1765982604761,0.23974111,87595.0,87591.0,0.06843647]
[1765982604963,0.0114163,87594.0,87590.0,0.01141682]
[1765982605166,0.01141643,87593.0,87589.0,0.01141695]
[1765982605367,0.02775048,87599.0,87595.0,0.23973709]
[1765982605569,0.02775048,87599.0,87585.0,0.05701978]
[1765982605570,0.01141617,87595.0,87592.0,0.12504812]
[1765982605735,0.0114163,87594.0,87592.0,0.22833049]
[1765982605932,0.22832338,87596.0,87592.0,0.01141656]
[1765982605933,0.22832315,87596.0,87592.0,0.01141656]
[1765982606153,0.01141604,87596.0,87593.0,0.23974288]
[1765982606348,0.51836,87600.0,87593.0,0.01141643]
[1765982606557,0.51836,87600.0,87594.0,0.23974244]
[1765982606558,0.01141578,87598.0,87594.0,0.23974244]
[1765982606796,0.01141578,87598.0,87595.0,0.01141617]
[1765982607133,0.01141643,87593.0,87588.0,0.36646473]
[1765982607268,0.01141604,87596.0,87588.0,0.01141708]
[1765982607468,0.01141682,87590.0,87586.0,0.01141734]
[1765982607692,0.01141682,87590.0,87583.0,0.36646473]
[1765982607693,0.22835221,87584.0,87583.0,0.36646473]
[1765982607869,0.011418,87581.0,87576.0,0.01141865]
[1765982608070,0.01141839,87578.0,87575.0,0.22837328]
[1765982608268,0.01141839,87578.0,87574.0,0.01141891]
[1765982608506,0.0091,87566.0,87565.0,0.00024996]
[1765982609878,0.03029,87566.0,87565.0,0.00024996]
[1765982610307,0.22836416,87580.0,87576.0,0.22837288]
[1765982610500,0.22836416,87580.0,87574.0,0.01141891]
[1765982610501,0.01832,87579.0,87578.0,0.01141839]
[1765982610710,0.01832,87579.0,87578.0,0.23978606]
[1765982610979,0.01141904,87573.0,87570.0,0.11363156]
[1765982611186,0.02572433,87575.0,87570.0,0.01141943]
[1765982611345,0.00885,87569.0,87568.0,0.23981331]
[1765982611545,0.23979807,87574.0,87570.0,0.23980777]
[1765982611745,0.01141891,87574.0,87570.0,0.23980777]
[1765982611967,0.02119,87572.0,87571.0,0.0114193]
[1765982612169,0.02996,87566.0,87553.0,0.01142165]
[1765982612335,0.02996,87566.0,87564.0,0.22840419]
[1765982612536,0.00877,87566.0,87565.0,0.05726974]
[1765982612771,0.00877,87572.0,87570.0,0.22838871]
[1765982613003,0.01141787,87582.0,87569.0,0.01141956]
[1765982613004,0.01836,87575.0,87574.0,0.05701978]
[1765982613226,0.01836,87575.0,87574.0,0.22837828]
[1765982613685,0.01836,87575.0,87574.0,0.28539806]
[1765982613892,0.01141708,87588.0,87582.0,0.22835742]
[1765982614095,0.02977748,87585.0,87582.0,0.22835742]
[1765982614301,0.25812788,87585.0,87581.0,0.22835953]
[1765982614505,0.01836,87585.0,87582.0,0.22835742]
[1765982615243,0.04395565,87599.0,87595.0,0.22832286]
[1765982615610,0.01141604,87596.0,87593.0,0.23974497]
[1765982615819,0.01141591,87597.0,87593.0,0.23974497]
[1765982615820,0.02108,87595.0,87593.0,0.23974497]
[1765982615992,0.02108,87589.0,87588.0,0.01141708]
[1765982616253,0.02108,87589.0,87588.0,0.23975886]
[1765982616466,0.05362,87588.0,87587.0,0.23975643]
[1765982616671,0.02108,87588.0,87587.0,0.23975643]
[1765982616846,0.27460583,87593.0,87590.0,0.01141682]
[1765982617071,0.02108,87591.0,87588.0,0.01141708]
[1765982617291,0.02191736,87591.0,87590.0,0.22833656]
[1765982617529,0.03254,87593.0,87588.0,0.23975864]
[1765982617722,0.00548,87583.0,87582.0,0.24113883]
[1765982617966,0.0591,87583.0,87582.0,0.00136354]
[1765982618171,0.05362,87580.0,87579.0,0.2397835]
[1765982618814,0.02108,87580.0,87579.0,0.2397835]
[1765982619647,0.02108,87580.0,87573.0,0.36665738]
[1765982619855,0.00843,87566.0,87564.0,0.01142021]
[1765982620064,0.02951,87566.0,87564.0,0.01142021]
[1765982620283,0.02951,87566.0,87563.0,0.22840662]
[1765982620501,0.06205,87566.0,87564.0,0.22840184]
[1765982620709,0.00843,87566.0,87565.0,0.22865171]
[1765982621170,0.00843,87566.0,87565.0,0.00024996]
[1765982621391,0.00843,87566.0,87565.0,0.22865171]
[1765982621564,0.00835,87572.0,87571.0,0.2283861]
[1765982621741,0.00835,87572.0,87570.0,0.01141943]
[1765982621921,0.01832,87577.0,87574.0,0.01141891]
[1765982622122,0.01832,87577.0,87576.0,0.22837307]
[1765982622716,0.02973682,87590.0,87585.0,0.01141748]
[1765982622923,0.01141734,87586.0,87583.0,0.01141774]
[1765982623165,0.0054,87583.0,87582.0,0.22835248]
[1765982623772,0.24942183,87588.0,87585.0,0.01141748]
[1765982623976,0.2283484,87586.0,87583.0,0.01141774]
[1765982624240,0.2283496,87585.0,87583.0,0.01141774]
[1765982624412,0.00532,87583.0,87581.0,0.23977553]
[1765982624606,0.00532,87583.0,87582.0,0.22835742]
[1765982624839,0.02854141,87592.0,87591.0,0.22833396]
[1765982624970,0.2568523,87599.0,87597.0,0.01141591]
[1765982625180,0.01141643,87593.0,87589.0,0.37807433]
[1765982625381,0.03254,87597.0,87592.0,0.01141656]
[1765982625601,0.03254,87597.0,87595.0,0.22832326]
[1765982625936,0.02108,87596.0,87595.0,0.22832326]
[1765982626098,0.02108,87595.0,87594.0,0.22832614]
[1765982626299,0.02108,87595.0,87592.0,0.01141656]
[1765982626501,0.02108,87590.0,87586.0,0.23976417]
[1765982626702,0.02108,87590.0,87588.0,0.22834178]
[1765982627056,0.01141734,87586.0,87583.0,0.36665738]
[1765982627207,0.05869,87583.0,87582.0,0.24113883]
[1765982627404,0.02615,87583.0,87582.0,0.00136354]
[1765982627623,0.01141787,87582.0,87575.0,0.22837417]
[1765982627806,0.01141787,87582.0,87574.0,0.01141891]
[1765982627807,0.03249865,87576.0,87574.0,0.2283772]
[1765982628011,0.02973682,87590.0,87583.0,0.01141774]
[1765982628362,0.28199567,87575.0,87574.0,0.00136354]
[1765982628744,0.00827,87566.0,87563.0,0.01142034]
[1765982628947,0.00827,87566.0,87565.0,0.22865171]
[1765982630063,0.23666915,87566.0,87565.0,0.00024996]
[1765982630263,0.23666915,87566.0,87565.0,0.00224996]
[1765982630467,0.25774915,87566.0,87565.0,0.00224996]
[1765982630707,0.00827,87566.0,87565.0,0.00224996]
[1765982630850,0.01141969,87568.0,87565.0,0.00224996]
[1765982631060,0.22839915,87566.0,87565.0,0.00224996]
[1765982631261,0.39693931,87566.0,87565.0,0.00224996]
[1765982631574,0.02108,87566.0,87565.0,0.00224996]
[1765982632012,0.24947915,87566.0,87565.0,0.00024996]
[1765982632211,0.28201915,87566.0,87565.0,0.00024996]
[1765982632372,0.28201915,87566.0,87565.0,0.00124996]
[1765982632574,0.39693931,87566.0,87565.0,0.00024996]
[1765982632779,0.28201915,87566.0,87565.0,0.00024996]
[1765982633006,0.28201915,87566.0,87565.0,0.00224996]
[1765982633007,0.30033915,87566.0,87565.0,0.00224996]
[1765982633224,0.01141969,87568.0,87565.0,0.00224996]
[1765982633425,0.24671915,87566.0,87565.0,0.00224996]
[1765982633581,0.41525931,87566.0,87565.0,0.00224996]
[1765982633789,0.41525931,87566.0,87565.0,0.00024996]
[1765982635261,0.41625931,87566.0,87565.0,0.00024996]
[1765982635389,0.30033915,87566.0,87565.0,0.00024996]
[1765982635584,0.41579993,87566.0,87565.0,0.00024996]
[1765982635807,0.41779993,87566.0,87565.0,0.00024996]
[1765982636440,0.02108,87538.0,87537.0,0.01142374]
[1765982636664,0.02108,87538.0,87537.0,0.239896]
[1765982636975,0.27240031,87551.0,87546.0,0.22845132]
[1765982637135,0.02732204,87550.0,87546.0,0.22845132]
[1765982637340,0.03698,87550.0,87549.0,0.2284435]
[1765982637587,0.03698,87550.0,87545.0,0.05701978]
[1765982637588,0.02108,87546.0,87545.0,0.01142269]
[1765982637760,0.05362,87545.0,87544.0,0.23987905]
[1765982637975,0.05362,87545.0,87543.0,0.22845865]
[1765982638152,0.05362,87541.0,87540.0,0.22846698]
[1765982638359,0.05362,87540.0,87539.0,0.01142347]
[1765982638619,0.02108,87538.0,87537.0,0.002]
[1765982638755,0.02108,87538.0,87537.0,0.23047481]
[1765982638960,0.02855837,87540.0,87539.0,0.22846959]
[1765982639189,0.04396269,87545.0,87543.0,0.2284586]
[1765982639343,0.22845139,87546.0,87543.0,0.22845853]
[1765982639540,0.22845451,87545.0,87542.0,0.23988403]
[1765982639744,0.22845451,87545.0,87540.0,0.2969101]
[1765982639745,0.22845958,87543.0,87540.0,0.2969101]
[1765982639987,0.01142074,87560.0,87548.0,0.2284461]
[1765982640205,0.02108,87561.0,87560.0,0.01142074]
[1765982640369,0.01141839,87578.0,87575.0,0.01141878]
[1765982640572,0.01141813,87580.0,87572.0,0.2398025]
[1765982640773,0.01141813,87580.0,87570.0,0.22838789]
[1765982640774,0.01141943,87570.0,87563.0,0.23982215]
[1765982640974,0.01832,87582.0,87561.0,0.0114206]
[1765982640975,0.01142008,87565.0,87561.0,0.0114206]
[1765982641237,0.01141839,87578.0,87571.0,0.0114193]
[1765982641373,0.01141956,87569.0,87568.0,0.53795294]
[1765982641580,0.01141956,87569.0,87563.0,0.01142034]
[1765982641776,0.01141969,87568.0,87564.0,0.01142021]
[1765982642051,0.01142021,87564.0,87561.0,0.00136354]
[1765982642180,0.22840958,87562.0,87561.0,0.00136354]
[1765982642376,0.03254,87567.0,87549.0,0.2398651]
[1765982642583,0.23987388,87546.0,87542.0,0.22846033]
[1765982642794,0.23987388,87546.0,87542.0,0.23988414]
[1765982642795,0.01142256,87546.0,87542.0,0.23988414]
[1765982643015,0.23988276,87543.0,87540.0,0.53795294]